[Event "Austrian Women Bundesliga 2023-24"]
[Site "Austria"]
[Date "2024.04.12"]
[Round "7"]
[White "Radeva, Viktoria"]
[Black "Kejzar, Petra"]
[Result "1-0"]
[ECO "B32"]
[WhiteElo "2315"]
[BlackElo "2049"]
[Annotator "RC"]
[PlyCount "167"]
[EventDate "2023.11.21"]
[EventType "team-tourn"]
[EventCountry "AUT"]
[SourceTitle "playchess.com"]
[Source "ChessBase"]
[SourceQuality "1"]
[TimeControl "40/5400+30:1800+30"]

1. e4 {[%emt 0:00:02]} c5 {[%emt 0:00:06]} 2. Nf3 {[%emt 0:00:07]} Nc6 {[%emt 0:00:14]} 3. d4 {[%emt 0:00:22]} cxd4 {[%emt 0:00:08]} 4. Nxd4 {[%emt 0:00:03]} e5 {[%emt 0:00:21]} 5. Nb5 {[%emt 0:00:30]} d6 {[%emt 0:00:13]} 6. c4 {[%emt 0:00:11]} Be6 {[%emt 0:00:33]} 7. N1c3 {[%emt 0:02:23]} a6 {[%emt 0:00:29]} 8. Na3 {[%emt 0:00:09]} g6 {[%emt 0:01:18]} 9. Nc2 {[%emt 0:06:24]} Bg7 {[%emt 0:01:04]} 10. Be2 {[%emt 0:00:29]} Nf6 {[%emt 0:08:36]} 11. O-O {[%emt 0:00:58]} O-O {[%emt 0:00:22]} 12. Be3 {[%emt 0:05:45]} Rc8 {[%emt 0:01:35]} 13. f3 {[%emt 0:01:44]} Nh5 {[%emt 0:10:55]} 14. Nd5 {[%emt 0:15:39]} Nd4 {[%emt 0:19:11]} 15. Nxd4 {[%emt 0:08:47]} exd4 {[%emt 0:00:21]} 16. Bxd4 {[%emt 0:01:06]} Bxd4+ {[%emt 0:02:44]} 17. Qxd4 {[%emt 0:00:23]} Bxd5 {[%emt 0:02:07]} 18. exd5 {[%emt 0:04:09]} Re8 {[%emt 0:07:08]} 19. Rfe1 {[%emt 0:07:23]} b5 {[%emt 0:05:43]} 20. Bf1 {[%emt 0:16:09]} Rxe1 {[%emt 0:10:54]} 21. Rxe1 {[%emt 0:00:08]} Qa5 {[%emt 0:02:24]} 22. Re7 {[%emt 0:06:53]} Qxa2 {[%emt 0:04:39]} 23. cxb5 {[%emt 0:04:27]} axb5 {[%emt 0:02:07]} 24. Bxb5 {[%emt 0:00:54]} Ng7 {[%emt 0:01:46]} 25. Bd3 {[%emt 0:06:27]} Qa1+ {[%emt 0:07:12]} 26. Kf2 {[%emt 0:01:20]} Qd1 {[%emt 0:02:06]} 27. Qf4 {[%emt 0:03:22]} Rf8 {[%emt 0:00:35]} 28. Qc4 {[%emt 0:03:07]} Qh1 {[%emt 0:01:37]} 29. h3 {[%emt 0:01:25]} Nh5 {[%emt 0:01:33]} 30. Bf1 {[%emt 0:03:07]} Qh2 {[%emt 0:00:41]} 31. Qg4 {[%emt 0:00:43]} Rb8 {[%emt 0:04:09]} 32. b4 {[%emt 0:00:30]} Qf4 {[%emt 0:02:20]} 33. Qxf4 {[%emt 0:01:11]} Nxf4 {[%emt 0:00:01]} 34. b5 {[%emt 0:00:28]} Nxd5 {[%emt 0:00:20]} 35. Re4 {[%emt 0:00:31]} Nb6 {[%emt 0:01:25]} 36. Ke3 {[%emt 0:00:27]} Kf8 {[%emt 0:00:33]} 37. Kd4 {[%emt 0:00:26]} Ra8 {[%emt 0:00:38]} 38. Re1 {[%emt 0:00:26]} Ra3 {[%emt 0:00:42]} 39. Rc1 {[%emt 0:00:37]} Ra4+ {[%emt 0:00:25]} 40. Ke3 {[%emt 0:00:37]} Ke7 {[%emt 0:00:22]} 41. Rc7+ {[%emt 0:30:40]} Ke6 {[%emt 0:30:49]} 42. Rc6 {[%emt 0:00:00]} Nd5+ {[%emt 0:00:00]} 43. Kf2 {[%emt 0:00:00]} Ra2+ {[%emt 0:00:00]} 44. Kg1 {[%emt 0:00:00]} Ne3 {[%emt 0:00:00]} 45. Bc4+ {[%emt 0:00:00]} Nxc4 {[%emt 0:00:00]} 46. Rxc4 {[%emt 0:00:00]} Rb2 {[%emt 0:00:00]} 47. Re4+ {[%emt 0:00:00]} Kd7 {[%emt 0:00:00]} 48. Rf4 {[%emt 0:00:00]} f5 {[%emt 0:00:00]} 49. Ra4 {[%emt 0:00:00]} Ke6 {[%emt 0:00:00]} 50. Ra7 {[%emt 0:00:00]} d5 {[%emt 0:00:00]} 51. Rxh7 {[%emt 0:00:00]} d4 {[%emt 0:00:00]} 52. Kf1 {[%emt 0:00:00]} Rxb5 {[%emt 0:00:00]} 53. Ke2 {[%emt 0:01:37]} Rb2+ {[%emt 0:00:00]} 54. Kd3 {[%emt 0:00:13]} Rxg2 {[%emt 0:00:00]} 55. Kxd4 {[%emt 0:00:09]} Re2 {[%emt 0:00:00]} 56. Kd3 {[%emt 0:00:51]} Re1 {[%emt 0:00:10]} 57. Kd2 {[%emt 0:00:52]} Re5 {[%emt 0:00:11]} 58. Rh8 {[%emt 0:02:03]} Kf7 {[%emt 0:01:24]} 59. Ra8 {[%emt 0:00:21]} Kf6 {[%emt 0:01:49]} 60. Ra4 {[%emt 0:00:37]} Re7 {[%emt 0:00:46]} 61. h4 {[%emt 0:00:14]} Kg7 {[%emt 0:01:03]} 62. Ra5 {[%emt 0:01:20]} Kh6 {[%emt 0:01:31]} 63. Ra8 {[%emt 0:00:07]} Re6 {[%emt 0:02:48]} 64. Rh8+ {[%emt 0:00:32]} Kg7 {[%emt 0:00:01]} 65. Ra8 {[%emt 0:00:09]} f4 {[%emt 0:01:26]} 66. Ra4 {[%emt 0:00:45]} Rf6 {[%emt 0:00:05]} 67. Ke2 {[%emt 0:01:25]} Kh6 {[%emt 0:00:17]} 68. Ra8 {[%emt 0:00:11]} Re6+ {[%emt 0:00:25]} 69. Kf2 {[%emt 0:00:07]} Rb6 {[%emt 0:00:24]} 70. Rf8 {[%emt 0:01:40]} Rb2+ {[%emt 0:00:17]} 71. Kg1 {[%emt 0:00:11]} Rb4 {[%emt 0:01:29]} 72. Kg2 {[%emt 0:00:09]} Kg7 {[%emt 0:00:07]} 73. Ra8 {[%emt 0:00:46]} Rb2+ {[%emt 0:00:41]} 74. Kh3 {[%emt 0:00:14]} Rb4 {[%emt 0:01:05]} 75. Kg4 {[%emt 0:00:06]} Rc4 {[%emt 0:00:39]} 76. Re8 {[%emt 0:00:29]} Kf6 {[%emt 0:00:40]} 77. Rf8+ {[%emt 0:00:27]} Ke5 {[%emt 0:00:19]} 78. Kg5 {[%emt 0:00:20]} Ra4 {[%emt 0:00:52]} 79. Kxg6 {[%emt 0:00:23]} Ra3 {[%emt 0:00:15]} 80. Rf5+ {[%emt 0:00:27]} Kd4 {[%emt 0:00:37]} 81. Rxf4+ {[%emt 0:00:04]} Ke3 {[%emt 0:00:10]} 82. Rf6 {[%emt 0:00:32]} Ra1 {[%emt 0:00:36]} 83. h5 {[%emt 0:00:04]} Rg1+ {[%emt 0:00:05]} 84. Kf7 {[%emt 0:00:10]} 1-0

[Event "Austrian Women Bundesliga 2023-24"]
[Site "Austria"]
[Date "2024.04.12"]
[Round "7"]
[White "Urh, Zala"]
[Black "Polterauer, Chiara"]
[Result "1/2-1/2"]
[ECO "A48"]
[WhiteElo "2263"]
[BlackElo "2194"]
[Annotator "RC"]
[PlyCount "107"]
[EventDate "2023.11.21"]
[EventType "team-tourn"]
[EventCountry "AUT"]
[SourceTitle "playchess.com"]
[Source "ChessBase"]
[SourceQuality "1"]
[TimeControl "40/5400+30:1800+30"]

1. d4 {[%emt 0:00:13]} Nf6 {[%emt 0:00:06]} 2. Nf3 {[%emt 0:00:24]} g6 {[%emt 0:00:28]} 3. Bf4 {[%emt 0:00:44]} Bg7 {[%emt 0:00:48]} 4. e3 {[%emt 0:00:10]} d5 {[%emt 0:01:54]} 5. Be2 {[%emt 0:02:41]} O-O {[%emt 0:03:06]} 6. c3 {[%emt 0:03:31]} Nbd7 {[%emt 0:08:14]} 7. h4 {[%emt 0:03:38]} h5 {[%emt 0:04:08]} 8. Nbd2 {[%emt 0:07:47]} c5 {[%emt 0:10:34]} 9. Ne5 {[%emt 0:16:28]} Nxe5 {[%emt 0:06:55]} 10. Bxe5 {[%emt 0:03:04]} cxd4 {[%emt 0:04:08]} 11. exd4 {[%emt 0:02:22]} Ng4 {[%emt 0:06:04]} 12. Bxg7 {[%emt 0:05:15]} Kxg7 {[%emt 0:00:08]} 13. Bxg4 {[%emt 0:00:05]} Bxg4 {[%emt 0:00:13]} 14. f3 {[%emt 0:00:21]} Be6 {[%emt 0:03:37]} 15. Qe2 {[%emt 0:02:05]} Qd6 {[%emt 0:05:51]} 16. Kf2 {[%emt 0:03:14]} Rfe8 {[%emt 0:08:28]} 17. Rae1 {[%emt 0:03:23]} Bf5 {[%emt 0:00:13]} 18. Nf1 {[%emt 0:09:45]} f6 {[%emt 0:01:32]} 19. Ne3 {[%emt 0:00:56]} Bd7 {[%emt 0:01:01]} 20. Qd2 {[%emt 0:06:57]} Kf7 {[%emt 0:09:45]} 21. g3 {[%emt 0:02:50]} a5 {[%emt 0:06:53]} 22. Ng2 {[%emt 0:08:54]} b5 {[%emt 0:07:09]} 23. Qh6 {[%emt 0:05:45]} Rh8 {[%emt 0:00:16]} 24. Qf4 {[%emt 0:00:04]} Ra6 {[%emt 0:03:29]} 25. Re2 {[%emt 0:02:07]} Bf5 {[%emt 0:00:29]} 26. Rhe1 {[%emt 0:01:38]} e6 {[%emt 0:00:30]} 27. Qd2 {[%emt 0:05:28]} Qf8 {[%emt 0:01:13]} 28. Ne3 {[%emt 0:01:21]} Qh6 {[%emt 0:00:31]} 29. Qd1 {[%emt 0:01:07]} Rd6 {[%emt 0:01:50]} 30. Qb3 {[%emt 0:01:21]} Rb8 {[%emt 0:02:01]} 31. Qa3 {[%emt 0:00:41]} Qf8 {[%emt 0:01:48]} 32. Nxf5 {[%emt 0:01:23]} gxf5 {[%emt 0:00:14]} 33. Qxa5 {[%emt 0:00:06]} Rdb6 {[%emt 0:01:44]} 34. a3 {[%emt 0:01:04]} Qc8 {[%emt 0:00:42]} 35. Qb4 {[%emt 0:00:27]} Qc7 {[%emt 0:00:44]} 36. f4 {[%emt 0:00:26]} Rg8 {[%emt 0:00:17]} 37. Re3 {[%emt 0:00:31]} Rg4 {[%emt 0:00:35]} 38. Qa5 {[%emt 0:00:34]} Qb7 {[%emt 0:00:51]} 39. R1e2 {[%emt 0:00:26]} Rg8 {[%emt 0:00:12]} 40. Qb4 {[%emt 0:00:26]} Rc8 {[%emt 0:00:48]} 41. Qb3 {[%emt 0:02:57]} Rg8 {[%emt 0:00:50]} 42. Qd1 {[%emt 0:01:31]} Qe7 {[%emt 0:01:48]} 43. a4 {[%emt 0:04:17]} bxa4 {[%emt 0:01:36]} 44. Qxa4 {[%emt 0:00:25]} Qb7 {[%emt 0:00:06]} 45. b4 {[%emt 0:01:10]} Ra8 {[%emt 0:00:52]} 46. Qd1 {[%emt 0:00:35]} Qa6 {[%emt 0:03:43]} 47. Rb2 {[%emt 0:03:21]} Kg6 {[%emt 0:00:45]} 48. Qe1 {[%emt 0:06:01]} Qc8 {[%emt 0:02:23]} 49. Qd2 {[%emt 0:03:24]} Qa6 {[%emt 0:04:16]} 50. Re1 {[%emt 0:04:01]} Qc4 {[%emt 0:01:00]} 51. Rc1 {[%emt 0:00:52]} Ra3 {[%emt 0:01:00]} 52. Rbc2 {[%emt 0:02:14]} Qb3 {[%emt 0:02:38]} 53. Rb2 {[%emt 0:01:10]} Qc4 {[%emt 0:00:15]} 54. Rbc2 1/2-1/2

[Event "Austrian Women Bundesliga 2023-24"]
[Site "Austria"]
[Date "2024.04.12"]
[Round "7"]
[White "Terbe, Zsuzsanna"]
[Black "Hrescak, Ivana"]
[Result "1-0"]
[ECO "E75"]
[WhiteElo "2178"]
[BlackElo "2089"]
[Annotator "TA"]
[PlyCount "191"]
[EventDate "2023.11.21"]
[EventType "team-tourn"]
[EventCountry "AUT"]
[SourceTitle "playchess.com"]
[Source "ChessBase"]
[SourceQuality "1"]
[TimeControl "40/5400+30:1800+30"]

{[%evp 74,191,121,121,121,121,121,121,132,132,132,132,142,142,150,143,345,375,375,160,375,370,352,198,199,206,320,239,217,162,157,139,157,139,155,68,68,68,68,68,68,68,68,68,68,68,68,68,68,68,68,68,68,68,68,68,68,68,68,68,68,68,68,68,68,68,68,68,68,68,68,68,68,68,68,68,68,68,68,68,68,68,68,68,68,68,68,68,68,61,68,68,68,61,68,61,68,61,61,61,61,61,68,0,0,0,4429,8,29975,29974,29978,29975,29986,29987,29987,29988,29988,29989,29989,29989]} 1. d4 {[%emt 0:00:03] Edouard,Romain} Nf6 {[%emt 0:00:11]} 2. c4 {[%emt 0:00:09]} g6 {[%emt 0:00:07]} 3. Nc3 {[%emt 0:00:11]} Bg7 {[%emt 0:00:06]} 4. e4 {[%emt 0:00:07]} d6 {[%emt 0:00:04]} 5. Be2 {[%emt 0:00:10]} O-O {[%emt 0:00:06]} 6. Bg5 {[%emt 0:00:04]} c5 {[%emt 0:01:25]} 7. d5 {[%emt 0:00:12]} e6 {[%emt 0:00:49]} 8. Qd2 {[%emt 0:00:26]} exd5 {[%emt 0:01:48]} 9. exd5 {[%emt 0:00:11]} Qe7 $146 {[%emt 0:14:21] E75: King's Indian: Averbakh Variation: 6...c5 7 d5 e6.} ({Predecessor:} 9... Bf5 10. Nf3 Qb6 11. Nh4 Ne4 12. Nxe4 Bxe4 13. f3 h6 14. Bxh6 Bxh6 15. Qxh6 Qxb2 16. Rc1 Bc2 17. O-O Nd7 18. Rf2 Ba4 19. Bd1 Qa3 20. Bxa4 Qxa4 21. f4 {1-0 Kryvoruchko,Y (2682)-Van Foreest,J (2682) Bundesliga 1920 final 2020 (3.1)}) 10. Nf3 {[%emt 0:03:31]} Bg4 {[%emt 0:04:15]} 11. O-O {[%emt 0:01:54]} Nbd7 {[%emt 0:02:07]} 12. Rae1 {[%emt 0:05:01]} Rfe8 {[%emt 0:08:37]} 13. h3 {[%emt 0:01:15]} Bxf3 {[%emt 0:00:14]} 14. Bxf3 {[%emt 0:00:08]} Qf8 {[%emt 0:02:31]} 15. b3 {[%emt 0:04:40]} a6 {[%emt 0:03:08]} 16. a4 {[%emt 0:00:38]} Rxe1 {[%emt 0:01:35]} 17. Rxe1 {[%emt 0:00:09]} Re8 {[%emt 0:00:33]} 18. Rxe8 {[%emt 0:06:39]} Qxe8 {[%emt 0:00:46]} 19. Qe3 {[%emt 0:01:37]} Qxe3 {[%emt 0:04:18]} 20. Bxe3 {[%emt 0:01:29]} h6 {[%emt 0:05:33]} 21. Bd2 {[%emt 0:03:13]} Ne8 {[%emt 0:04:52]} 22. a5 {[%emt 0:06:46]} Kh7 {[%emt 0:03:58]} 23. Bd1 {[%emt 0:02:16]} Be5 {[%emt 0:05:59]} 24. g4 {[%emt 0:12:01]} Ng7 {[%emt 0:04:20]} 25. Kg2 {[%emt 0:09:02]} f5 {[%emt 0:03:28]} 26. f4 {[%emt 0:03:13]} Bf6 {[%emt 0:00:18]} 27. Bc2 {[%emt 0:02:01]} Bd8 {[%emt 0:01:33]} 28. Nd1 {[%emt 0:04:30]} h5 {[%emt 0:01:42]} 29. Ne3 {[%emt 0:03:40]} hxg4 {[%emt 0:02:52]} 30. hxg4 {[%emt 0:00:09]} fxg4 {[%emt 0:00:05]} 31. f5 {[%emt 0:10:28]} Ne5 {[%emt 0:05:39]} 32. fxg6+ {[%emt 0:01:21]} Nxg6 {[%emt 0:00:51]} 33. Nxg4 {[%emt 0:00:49]} Nh5 {[%emt 0:04:45]} 34. Bf5 {[%emt 0:07:15]} b6 {[%emt 0:02:44]} 35. axb6 {[%emt 0:00:29]} Bxb6 {[%emt 0:00:20]} 36. Kf3 {[%emt 0:03:30]} a5 {[%emt 0:01:48]} 37. Bg5 {[%emt 0:01:45]} Kg7 {[%emt 0:01:08]} 38. Bh6+ {[%emt 0:01:34]} Kf7 {[%emt 0:02:49]} 39. Be6+ {[%emt 0:00:16]} Ke8 {[%emt 0:00:52]} 40. Bg5 {[%emt 0:01:54]} Bd8 {[%emt 0:06:17]} 41. Bf7+ {[%emt 0:33:07]} Kxf7 {[%emt 0:30:03]} 42. Bxd8 {[%emt 0:00:10]} Ng7 {[%emt 0:00:00]} 43. Nh6+ {[%emt 0:00:00]} Kf8 {[%emt 0:00:00]} 44. Bxa5 {[%emt 0:00:00]} Ke7 $2 {[%emt 0:00:00]} (44... Ne5+ $16 {was worth a try.} 45. Ke4 Nf7) 45. Bc3 $18 {[%emt 0:00:00]} Ne8 {[%emt 0:00:00]} 46. Ng4 {[%emt 0:00:00]} (46. Ke4 $18 {is more deadly.}) 46... Kd7 $2 {[%emt 0:00:00]} (46... Kf8 $16 47. Nf2 Kf7) 47. Ke4 {[%emt 0:00:00]} Ne7 {[%emt 0:00:00]} 48. Nh6 {[%emt 0:00:00]} (48. Kf4 $142) 48... Nc7 $18 {[%emt 0:00:00]} 49. Nf7 {[%emt 0:00:00]} Na6 {[%emt 0:00:00]} (49... Ng8 {was called for.} 50. Ng5 Ke7) 50. Be1 {[%emt 0:00:00]} Nc7 {[%emt 0:00:00]} 51. Bg3 {[%emt 0:00:00]} Ne8 {[%emt 0:00:00]} 52. Bh4 {[%emt 0:00:00]} Ng6 {[%emt 0:00:00]} 53. Bg5 {[%emt 0:00:00]} Ne7 {[%emt 0:00:00]} 54. Bxe7 {[%emt 0:00:00]} ({White should try} 54. Nh6 $16) 54... Kxe7 $14 {[%emt 0:00:00]} 55. Ng5 {[%emt 0:00:00]} Ng7 {[%emt 0:00:00]} 56. Nh3 {[%emt 0:00:00]} Kf7 {[%emt 0:00:32]} 57. Nf4 {[%emt 0:00:00]} Kf6 {[%emt 0:00:29]} 58. Nd3 {[%emt 0:00:00]} Ke7 {[%emt 0:00:23]} 59. b4 {[%emt 0:00:00]} cxb4 {[%emt 0:00:09]} 60. Nxb4 {[%emt 0:00:00]} Ke8 {[%emt 0:01:40]} 61. Nc6 {[%emt 0:00:00]} Kd7 {[%emt 0:00:09]} 62. Nd4 {[%emt 0:00:00]} Ne8 {[%emt 0:01:27]} 63. Kf5 {[%emt 0:00:00]} Ke7 {[%emt 0:00:52]} 64. Kg6 {[%emt 0:00:00]} Nc7 {[%emt 0:01:00]} 65. Nf5+ {[%emt 0:00:00]} Kd7 {[%emt 0:00:30]} 66. Kf7 {[%emt 0:00:59]} Na8 {[%emt 0:00:43]} 67. Kf6 {[%emt 0:01:09]} Nb6 {[%emt 0:00:26]} 68. Ne3 {[%emt 0:00:04]} Nc8 {[%emt 0:00:29]} 69. Kf5 {[%emt 0:00:14]} Nb6 {[%emt 0:00:53]} 70. Ke4 {[%emt 0:00:05]} Nc8 {[%emt 0:00:46]} 71. Kd3 {[%emt 0:01:07]} Ne7 {[%emt 0:00:27]} 72. Kd4 {[%emt 0:00:24]} Kc7 {[%emt 0:00:39]} 73. Ke4 {[%emt 0:00:45]} Kd7 {[%emt 0:00:29]} 74. Nf5 {[%emt 0:00:18]} Nc8 {[%emt 0:00:19]} 75. Kd4 {[%emt 0:00:20]} Kc7 {[%emt 0:00:59]} 76. Kc3 {[%emt 0:00:17]} Nb6 {[%emt 0:01:34]} 77. Kb4 {[%emt 0:01:00]} Nd7 {[%emt 0:01:03]} 78. Nd4 {[%emt 0:00:31]} Ne5 {[%emt 0:00:50]} 79. Kb5 {[%emt 0:00:41]} Nf7 {[%emt 0:01:07]} 80. Nc6 {[%emt 0:00:54]} Ng5 {[%emt 0:00:38]} 81. Nb4 {[%emt 0:00:38]} Nf7 {[%emt 0:00:24]} 82. Nd3 {[%emt 0:00:38]} Ng5 {[%emt 0:00:41]} 83. Nf4 {[%emt 0:00:05]} Nf7 {[%emt 0:00:27]} 84. Ne6+ {[%emt 0:00:23]} Kd7 {[%emt 0:00:07]} 85. Nf8+ {[%emt 0:01:40]} Ke8 {[%emt 0:01:04]} 86. Ng6 {[%emt 0:00:09]} Kd7 {[%emt 0:00:21]} 87. Kb6 {[%emt 0:00:13]} Ng5 {[%emt 0:00:43]} 88. Nf8+ {[%emt 0:00:18]} (88. Ka5 $14) 88... Ke7 $11 {[%emt 0:00:23]} 89. Kc7 {[%emt 0:00:55]} Nf7 $2 {[%emt 0:01:19][%mdl 8192] [#]} (89... Kxf8 $11 90. Kxd6 Nf7+ 91. Kc7 Ke7) 90. Ng6+ $2 {[%emt 0:00:31]} ({White must play} 90. Nd7 $1 $18 {aiming for Nb8.} Nh6 91. Nb6) 90... Ke8 $2 {[%emt 0:00:55][%mdl 8192]} (90... Kf6 $11) 91. Nh4 {[%emt 0:00:47]} Ne5 {[%emt 0:00:23]} 92. Nf5 {[%emt 0:00:10]} ({Inferior is} 92. Kxd6 Nxc4+ 93. Kc5 Ne3 $11) 92... Nxc4 {[%emt 0:01:39]} 93. Nxd6+ {[%emt 0:00:06]} Nxd6 {[%emt 0:00:27]} 94. Kxd6 {[%emt 0:00:05]} Kd8 {[%emt 0:00:01]} 95. Kc6 {[%emt 0:00:08]} Ke7 {[%emt 0:00:23]} 96. Kc7 {[%emt 0:00:05]} 1-0

[Event "Austrian Women Bundesliga 2023-24"]
[Site "Austria"]
[Date "2024.04.12"]
[Round "7"]
[White "Schloffer, Jasmin-Denise"]
[Black "Janzelj, Lara"]
[Result "0-1"]
[ECO "D10"]
[WhiteElo "2167"]
[BlackElo "2167"]
[Annotator "TA"]
[PlyCount "108"]
[EventDate "2023.11.21"]
[EventType "team-tourn"]
[EventCountry "AUT"]
[SourceTitle "playchess.com"]
[Source "ChessBase"]
[SourceQuality "1"]
[TimeControl "40/5400+30:1800+30"]

{[%evp 23,108,0,6,0,0,0,0,-7,-7,-30,0,0,0,0,62,57,75,66,67,0,63,0,0,-96,-61,-343,-84,-85,-55,-313,-306,-440,-425,-423,-426,-419,-417,-427,-321,-401,0,-277,0,-401,-198,-194,-198,-197,-170,-322,-311,-316,-294,-295,-274,-518,-525,-604,-619,-908,-789,-952,-922,-873,-1014,-679,-887,-601,-300,-1473,-1255,-2792,-2404,-5089,-2122,-2363,-5114,-29981,-29982,-29982,-29983,-29986,-29986,-29988,-29989,-29989,-29990]} 1. d4 {[%emt 0:00:03]} d5 {[%emt 0:01:12]} 2. c4 {[%emt 0:00:05]} c6 {[%emt 0:00:07]} 3. cxd5 {[%emt 0:00:07]} cxd5 {[%emt 0:00:05]} 4. Nc3 {[%emt 0:00:04]} Nf6 {[%emt 0:00:10]} 5. Bf4 {[%emt 0:00:06]} Nc6 {[%emt 0:00:32]} 6. Nf3 {[%emt 0:00:07]} a6 {[%emt 0:00:24]} 7. Rc1 {[%emt 0:00:27]} Bf5 {[%emt 0:01:03]} 8. e3 {[%emt 0:02:03]} e6 {[%emt 0:10:34]} 9. Bd3 {[%emt 0:02:24]} Bxd3 {[%emt 0:02:54]} 10. Qxd3 {[%emt 0:00:07]} Be7 {[%emt 0:00:16]} 11. h3 {[%emt 0:02:44]} O-O {[%emt 0:00:45]} 12. O-O {[%emt 0:00:07]} b5 {[%emt 0:07:36] D13: Slav Defence: Exchange variation without ...Bf5.} 13. Ne5 {[%emt 0:11:57]} Nxe5 {[%emt 0:11:35]} 14. Bxe5 {[%emt 0:00:46]} Qa5 $146 {[%emt 0:03:26]} ({Predecessor:} 14... Bd6 15. Bxd6 Qxd6 16. Rc2 b4 17. Na4 Rfc8 18. Rfc1 Rxc2 19. Rxc2 h6 20. Qd1 Rb8 {½-½ Katter,M (1386)-Pribozic,S (1520) AUT-ch U18 Girls 2019 (6)}) 15. Qb1 {[%emt 0:05:19]} Rac8 {[%emt 0:08:27]} 16. Ne2 {[%emt 0:05:00]} Nd7 {[%emt 0:06:34]} 17. Bg3 {[%emt 0:05:28]} Rc4 {[%emt 0:09:54]} 18. b3 {[%emt 0:03:36]} Rxc1 {[%emt 0:00:08]} ({Better is} 18... Rcc8 $11) 19. Rxc1 $14 {[%emt 0:00:08]} Ba3 {[%emt 0:01:09]} 20. Rc7 {[%emt 0:03:33]} Nf6 {[%emt 0:00:11]} 21. Qc2 {[%emt 0:06:51]} (21. Be5 $14) 21... Qe1+ $11 {[%emt 0:03:34]} 22. Kh2 {[%emt 0:01:25]} Ne4 {[%emt 0:00:30]} 23. Bf4 {[%emt 0:00:30]} (23. Nf4 $11 {remains equal.}) 23... Qxf2 {[%emt 0:00:30]} 24. Rc8 $2 {[%emt 0:00:30][%mdl 8192]} (24. Ng3 $1 $15) 24... h6 $2 {[%emt 0:00:30]} (24... g5 $19 25. Be5 Qxe3) 25. Ng3 $17 {[%emt 0:00:30]} Nd2 {[%emt 0:11:56]} (25... Qxc2 {simplifies} 26. Rxc2 Nf6 27. Nh1 a5) 26. Rxf8+ $4 {[%emt 0:33:01][%mdl 8192]} (26. Kh1 $1 $15) 26... Bxf8 $19 {[%emt 0:00:01]} 27. Kh1 {[%emt 0:03:55]} (27. Qd1 {only move.}) 27... g5 $19 {[%emt 0:06:10]} 28. Be5 {[%emt 0:01:02]} Qe1+ {[%emt 0:03:05]} (28... Qxe3 29. Qc8 $11) 29. Kh2 {[%emt 0:00:17] [#]} h5 $1 {[%emt 0:00:34]} (29... Qxe3 30. Qc8 $11) 30. h4 {[%emt 0:02:18]} Qf2 {[%emt 0:06:18]} (30... Qxe3 31. Nxh5 Ne4 (31... gxh4 32. Nf6+ Kh8 33. Qh7#) 32. Qxe4 dxe4 33. Nf6+ Kg7 34. Ng4+ f6 35. Bxf6+ Kf7 36. Nxe3 $16) 31. Kh1 {[%emt 0:05:00]} Qe1+ {[%emt 0:00:03]} (31... gxh4 32. Nxh5 Qf1+ (32... Qxe3 33. Nf6+ Kh8 34. Qh7#) 33. Kh2 $19) (31... Qxe3 32. Qc1 Bg7 (32... gxh4 33. Nxh5 f5 34. Nf6+ Kf7 35. Qc6 $11) 33. Nxh5 Bxe5 34. dxe5 $19) 32. Kh2 {[%emt 0:00:06]} Qf2 {[%emt 0:00:06]} (32... Qxe3 33. Nxh5 f5 (33... gxh4 34. Nf6+ Kh8 35. Qh7#) (33... Ne4 34. Qxe4 dxe4 35. Nf6+ Kg7 36. Ng4+ f6 37. Bxf6+ Kf7 38. Nxe3 $16) 34. Nf6+ Kf7 35. Qc6 Nf3+ (35... gxh4 36. Qe8+ Kg7 37. Qd7+) (35... Nf1+ 36. Kh1 $11) 36. gxf3 Qf2+ 37. Kh3 Qf1+ 38. Kh2 Qe2+ (38... Qf2+ 39. Kh3 $11) 39. Kg1 Qe1+ 40. Kg2 Qe2+ 41. Kg1 Qe1+ 42. Kg2 Qe2+ 43. Kh1 Qf1+ 44. Kh2 Qf2+ 45. Kh1 Qf1+ 46. Kh2 $11) (32... g4 $142 33. Qd3 Bg7) 33. Kh1 $1 $19 {[%emt 0:00:10]} Ne4 {[%emt 0:00:30]} (33... gxh4 34. Nxh5 Qf1+ (34... Qxe3 35. Nf6+ Kh8 36. Qh7#) 35. Kh2 $19) (33... Qxe3 34. Qc1 Bg7 (34... gxh4 35. Nxh5 f5 36. Nf6+ Kf7 37. Qc8 $11) 35. Nxh5 Bxe5 36. dxe5 $19) (33... Bg7 $142 34. Qc7 Qxe3 (34... gxh4 $2 35. Qd8+ Kh7 36. Qxh4 $19) 35. Qb8+ Kh7 36. Bxg7 Kxg7 37. hxg5 Qxg5 (37... Qxd4 $2 38. Nxh5+ Kg6 39. Ng3 $19)) 34. Qxf2 $19 {[%emt 0:00:30]} Nxf2+ {[%emt 0:02:27]} 35. Kg1 {[%emt 0:00:27]} Ng4 {[%emt 0:00:30]} 36. Nxh5 $2 {[%emt 0:00:30]} (36. hxg5 h4 (36... Nxe3 37. Nxh5 Nd1 38. Nf6+ Kg7 39. Nxd5+ Kg6 40. Nc7 $11) (36... Nxe5 37. dxe5 h4 38. Ne2 $17) 37. Ne2 (37. Nh5 $2 Nxe5 38. Nf6+ Kg7 $19)) 36... Nxe5 $19 {[%emt 0:00:09]} ({Weaker is} 36... gxh4 37. Nf6+ Nxf6 38. Bxf6 $14) 37. dxe5 {[%emt 0:03:14]} gxh4 {[%emt 0:00:30]} 38. Nf6+ {[%emt 0:02:40]} Kg7 {[%emt 0:01:24]} 39. Ne8+ $2 {[%emt 0:01:07]} (39. Nd7) 39... Kg6 $19 40. Nc7 {[%emt 0:00:04]} Kf5 {[%emt 0:01:24]} 41. Nxa6 {[%emt 0:30:42]} b4 {[%emt 0:31:45]} 42. Nb8 {[%emt 0:01:58]} Bc5 {[%emt 0:00:48]} 43. Kf2 {[%emt 0:00:00]} Kxe5 {[%emt 0:00:00]} 44. Nd7+ {[%emt 0:00:00]} Kd6 {[%emt 0:00:00]} 45. Nf6 {[%emt 0:00:00]} e5 {[%emt 0:00:00]} (45... d4 $142 46. Ne4+ Kd5 47. Nf6+ Kc6) 46. Ke2 $2 {[%emt 0:00:00]} (46. Ne8+ Ke7 47. Nc7) 46... Ke6 {[%emt 0:00:00]} 47. Ng4 {[%emt 0:00:00]} f5 {[%emt 0:00:00]} 48. Nh2 {[%emt 0:00:00]} e4 {[%emt 0:00:00]} 49. Nf1 {[%emt 0:00:00]} Ke5 {[%emt 0:00:00]} (49... Kf6 $142 50. Nd2 Kg5) 50. Nd2 {[%emt 0:00:00]} f4 {[%emt 0:00:00]} 51. exf4+ {[%emt 0:00:00]} Kxf4 {[%emt 0:00:00]} 52. Nf1 {[%emt 0:00:00]} Bd4 {[%emt 0:00:00]} 53. Kd2 {[%emt 0:00:00]} Bc3+ {[%emt 0:00:00]} 54. Ke2 {[%emt 0:00:00]} d4 {[%emt 0:00:00]} 0-1